[Event "*** Titled Tuesday Blitz"]
[Site "Chess.com"]
[Date "2021.03.02"]
[Round "8"]
[White "klimkoj"]
[Black "Enriquack"]
[Result "1-0"]
[WhiteElo "2602"]
[BlackElo "2456"]
[TimeControl "180+1"]
[EndTime "11:30:12 PST"]
[Termination "klimkoj won by resignation"]

1. e4 {[%clk 0:03:00.9]} 1... c5 {[%clk 0:02:59]} 2. Nf3 {[%clk 0:03:00.7]} 2...
e6 {[%clk 0:02:57.5]} 3. d4 {[%clk 0:03:00.8]} 3... cxd4 {[%clk 0:02:57.8]} 4.
Nxd4 {[%clk 0:03:01.7]} 4... Nc6 {[%clk 0:02:58.4]} 5. Nc3 {[%clk 0:03:01.8]}
5... Qc7 {[%clk 0:02:58.6]} 6. Be3 {[%clk 0:03:01.6]} 6... a6 {[%clk 0:02:58.5]}
7. Be2 {[%clk 0:03:01.3]} 7... b5 {[%clk 0:02:58.7]} 8. O-O {[%clk 0:02:58.9]}
8... Bb7 {[%clk 0:02:57.5]} 9. Nxc6 {[%clk 0:02:57.9]} 9... Bxc6 {[%clk
0:02:50.8]} 10. Bf3 {[%clk 0:02:54.2]} 10... Nf6 {[%clk 0:02:46.2]} 11. a3
{[%clk 0:02:35.2]} 11... Be7 {[%clk 0:02:42.5]} 12. Bd4 {[%clk 0:02:28.2]} 12...
d6 {[%clk 0:02:38.9]} 13. Qe2 {[%clk 0:02:25.7]} 13... O-O {[%clk 0:02:36.1]}
14. Rad1 {[%clk 0:02:23.9]} 14... Rac8 {[%clk 0:02:33.8]} 15. Rfe1 {[%clk
0:02:20.7]} 15... Qb7 {[%clk 0:02:30.3]} 16. Na2 {[%clk 0:02:13.4]} 16... Qa8
{[%clk 0:02:16.7]} 17. Nb4 {[%clk 0:02:08.3]} 17... Bb7 {[%clk 0:02:16.7]} 18.
Na2 {[%clk 0:01:43.3]} 18... e5 {[%clk 0:02:05.5]} 19. Bc3 {[%clk 0:01:41.2]}
19... Rc4 {[%clk 0:02:02.3]} 20. b3 {[%clk 0:01:26.6]} 20... Rc6 {[%clk
0:01:58.5]} 21. Bb2 {[%clk 0:01:25.5]} 21... Rfc8 {[%clk 0:01:57.2]} 22. Nb4
{[%clk 0:01:24.8]} 22... R6c7 {[%clk 0:01:56.9]} 23. Rd2 {[%clk 0:01:21.6]}
23... a5 {[%clk 0:01:43.9]} 24. Nd5 {[%clk 0:01:19.3]} 24... Bxd5 {[%clk
0:01:43.9]} 25. exd5 {[%clk 0:01:20.2]} 25... b4 {[%clk 0:01:33.1]} 26. Ra1
{[%clk 0:01:10.8]} 26... Qb7 {[%clk 0:01:20.2]} 27. axb4 {[%clk 0:01:04.1]}
27... axb4 {[%clk 0:01:19.5]} 28. Ra5 {[%clk 0:00:52.2]} 28... Rc5 {[%clk
0:01:11.4]} 29. Rxc5 {[%clk 0:00:47.7]} 29... Rxc5 {[%clk 0:01:12.3]} 30. Bxe5
{[%clk 0:00:41.3]} 30... dxe5 {[%clk 0:01:09.5]} 31. d6 {[%clk 0:00:41.5]} 31...
Qd7 {[%clk 0:01:04.9]} 32. dxe7 {[%clk 0:00:35.8]} 32... Qxe7 {[%clk 0:01:05]}
33. Qe3 {[%clk 0:00:17.2]} 33... h6 {[%clk 0:00:53.4]} 34. Be2 {[%clk
0:00:15.7]} 34... e4 {[%clk 0:00:48.1]} 35. Bc4 {[%clk 0:00:14.6]} 35... Qe5
{[%clk 0:00:43.7]} 36. h3 {[%clk 0:00:13.4]} 36... g5 {[%clk 0:00:35.5]} 37.
Rd8+ {[%clk 0:00:12.2]} 37... Kg7 {[%clk 0:00:35.8]} 38. Qd4 {[%clk 0:00:10.6]}
38... Qxd4 {[%clk 0:00:23.3]} 39. Rxd4 {[%clk 0:00:11.5]} 39... Ra5 {[%clk
0:00:23.7]} 40. Rd6 {[%clk 0:00:09.9]} 40... Ra2 {[%clk 0:00:22.7]} 41. Rb6
{[%clk 0:00:08.3]} 41... Rxc2 {[%clk 0:00:22.7]} 42. Rxb4 {[%clk 0:00:07.5]}
42... h5 {[%clk 0:00:20.2]} 43. Rb7 {[%clk 0:00:07.2]} 43... g4 {[%clk
0:00:20.4]} 44. Rxf7+ {[%clk 0:00:05.7]} 44... Kg6 {[%clk 0:00:20.9]} 45. Rc7
{[%clk 0:00:05.1]} 45... e3 {[%clk 0:00:19.1]} 46. Bf7+ {[%clk 0:00:04.6]} 1-0

[Event "*** Titled Tuesday Blitz"]
[Site "Chess.com"]
[Date "2021.03.02"]
[Round "8"]
[White "Agoking701"]
[Black "KubaGepard"]
[Result "0-1"]
[WhiteElo "2241"]
[BlackElo "2398"]
[TimeControl "180+1"]
[EndTime "11:30:12 PST"]
[Termination "KubaGepard won on time"]

1. d4 {[%clk 0:02:53]} 1... d5 {[%clk 0:02:58.6]} 2. Bf4 {[%clk 0:02:51.3]} 2...
Nf6 {[%clk 0:02:58.5]} 3. e3 {[%clk 0:02:49.8]} 3... c5 {[%clk 0:02:59.4]} 4.
Nd2 {[%clk 0:02:47.5]} 4... e6 {[%clk 0:03:00.3]} 5. Ngf3 {[%clk 0:02:44.9]}
5... Bd6 {[%clk 0:02:58]} 6. Bg3 {[%clk 0:02:45.1]} 6... Qc7 {[%clk 0:02:44.5]}
7. dxc5 {[%clk 0:02:41.1]} 7... Qxc5 {[%clk 0:02:40.4]} 8. c4 {[%clk 0:01:40.4]}
8... Nc6 {[%clk 0:02:23.7]} 9. Rc1 {[%clk 0:01:38.4]} 9... Bxg3 {[%clk
0:02:18.4]} 10. hxg3 {[%clk 0:01:38.3]} 10... d4 {[%clk 0:02:15.9]} 11. exd4
{[%clk 0:01:12.6]} 11... Nxd4 {[%clk 0:02:13.3]} 12. Nb3 {[%clk 0:01:07.3]}
12... Nxb3 {[%clk 0:02:11.8]} 13. Qxb3 {[%clk 0:01:08.2]} 13... O-O {[%clk
0:02:09.8]} 14. Bd3 {[%clk 0:01:05]} 14... h6 {[%clk 0:02:09.3]} 15. O-O {[%clk
0:00:59]} 15... e5 {[%clk 0:02:03.7]} 16. Rfe1 {[%clk 0:00:51.7]} 16... Ng4
{[%clk 0:02:02.2]} 17. Qc2 {[%clk 0:00:36.3]} 17... f5 {[%clk 0:02:01.2]} 18. b4
{[%clk 0:00:36.6]} 18... Qd6 {[%clk 0:01:50.2]} 19. c5 {[%clk 0:00:36.2]} 19...
Qf6 {[%clk 0:01:47.3]} 20. Bc4+ {[%clk 0:00:35]} 20... Kh8 {[%clk 0:01:42.2]}
21. Rcd1 {[%clk 0:00:35]} 21... e4 {[%clk 0:01:41]} 22. Rd6 {[%clk 0:00:33.2]}
22... Qe7 {[%clk 0:01:33.9]} 23. Nh4 {[%clk 0:00:32.6]} 23... Ne5 {[%clk
0:01:30.9]} 24. Bb3 {[%clk 0:00:29.2]} 24... g5 {[%clk 0:01:26.3]} 25. f4 {[%clk
0:00:23]} 25... gxh4 {[%clk 0:01:21.1]} 26. fxe5 {[%clk 0:00:21.6]} 26... hxg3
{[%clk 0:01:20.6]} 27. Rxh6+ {[%clk 0:00:20]} 27... Kg7 {[%clk 0:01:20.2]} 28.
Qd2 {[%clk 0:00:17.5]} 28... f4 {[%clk 0:01:18.8]} 29. Qd6 {[%clk 0:00:16.4]}
29... Qxd6 {[%clk 0:01:17.3]} 30. Rxd6 {[%clk 0:00:17.3]} 30... Bf5 {[%clk
0:01:14.8]} 31. Rf1 {[%clk 0:00:16.6]} 31... f3 {[%clk 0:01:12.6]} 32. gxf3
{[%clk 0:00:16.3]} 32... Bh3 {[%clk 0:01:11.9]} 33. f4 {[%clk 0:00:02.8]} 33...
Bxf1 {[%clk 0:01:10.1]} 34. Kxf1 {[%clk 0:00:03.7]} 34... Rxf4+ {[%clk 0:01:10]}
35. Kg2 {[%clk 0:00:04.6]} 35... e3 {[%clk 0:01:08.7]} 36. Rd1 {[%clk
0:00:02.6]} 36... Raf8 {[%clk 0:01:05.5]} 37. Re1 {[%clk 0:00:02.6]} 37... Rf2+
{[%clk 0:01:05.1]} 38. Kxg3 {[%clk 0:00:02.4]} 38... R8f3+ {[%clk 0:01:04.7]}
39. Kg4 {[%clk 0:00:02.4]} 39... Rf4+ {[%clk 0:00:58.7]} 40. Kg3 {[%clk
0:00:02.3]} 40... R2f3+ {[%clk 0:00:58.9]} 41. Kg2 {[%clk 0:00:02.6]} 41... Kg6
{[%clk 0:00:58.9]} 42. e6 {[%clk 0:00:02.1]} 42... Kf6 {[%clk 0:00:58.5]} 43.
Bd5 {[%clk 0:00:01.7]} 43... Rf2+ {[%clk 0:00:56.6]} 44. Kg3 {[%clk 0:00:02.3]}
44... e2 {[%clk 0:00:57]} 45. Bxb7 {[%clk 0:00:02.4]} 45... Rf5 {[%clk 0:00:50]}
46. Ba6 {[%clk 0:00:02.6]} 46... R5f3+ {[%clk 0:00:46.4]} 47. Kg4 {[%clk
0:00:03]} 47... Re3 {[%clk 0:00:46.8]} 48. c6 {[%clk 0:00:03.2]} 48... Ke5
{[%clk 0:00:38.4]} 49. e7 {[%clk 0:00:02.7]} 49... Kd6 {[%clk 0:00:34.3]} 50. c7
{[%clk 0:00:01.3]} 50... Kxc7 {[%clk 0:00:33.2]} 0-1

[Event "*** Titled Tuesday Blitz"]
[Site "Chess.com"]
[Date "2021.03.02"]
[Round "8"]
[White "marvinguevara"]
[Black "DFeco"]
[Result "0-1"]
[WhiteElo "2111"]
[BlackElo "2256"]
[TimeControl "180+1"]
[EndTime "11:30:13 PST"]
[Termination "DFeco won on time"]

1. e4 {[%clk 0:03:00.9]} 1... e5 {[%clk 0:02:59.7]} 2. Nf3 {[%clk 0:03:00]} 2...
Nc6 {[%clk 0:03:00.1]} 3. Bc4 {[%clk 0:02:59.9]} 3... d6 {[%clk 0:02:58.5]} 4.
O-O {[%clk 0:02:59.6]} 4... g6 {[%clk 0:02:53.5]} 5. b4 {[%clk 0:02:55.5]} 5...
Bg7 {[%clk 0:02:47.5]} 6. c3 {[%clk 0:02:52.2]} 6... Nf6 {[%clk 0:02:44]} 7. Qb3
{[%clk 0:02:49]} 7... O-O {[%clk 0:02:43.4]} 8. d3 {[%clk 0:02:42.7]} 8... h6
{[%clk 0:02:39.4]} 9. h3 {[%clk 0:02:40.2]} 9... a6 {[%clk 0:02:38.3]} 10. a4
{[%clk 0:02:38.7]} 10... Rb8 {[%clk 0:02:36.8]} 11. Be3 {[%clk 0:02:25.8]} 11...
b5 {[%clk 0:02:30.1]} 12. axb5 {[%clk 0:02:21]} 12... axb5 {[%clk 0:02:30.1]}
13. Bd5 {[%clk 0:02:20.2]} 13... Nxd5 {[%clk 0:02:28.7]} 14. exd5 {[%clk
0:02:12]} 14... Ne7 {[%clk 0:02:27.7]} 15. Nbd2 {[%clk 0:02:00.5]} 15... f5
{[%clk 0:02:23.4]} 16. Ra5 {[%clk 0:01:49.2]} 16... f4 {[%clk 0:02:21.3]} 17.
Ba7 {[%clk 0:01:48.7]} 17... Rb7 {[%clk 0:02:21.5]} 18. Ne4 {[%clk 0:01:43.6]}
18... c6 {[%clk 0:02:12.5]} 19. dxc6+ {[%clk 0:01:39.7]} 19... Kh7 {[%clk
0:02:10.3]} 20. cxb7 {[%clk 0:01:38.7]} 20... Bxb7 {[%clk 0:02:10.1]} 21. Qe6
{[%clk 0:01:20.7]} 21... d5 {[%clk 0:01:39.7]} 22. Nc5 {[%clk 0:01:08]} 22...
Bc8 {[%clk 0:01:22.8]} 23. Qb6 {[%clk 0:00:59.7]} 23... Qe8 {[%clk 0:01:23]} 24.
Qxb5 {[%clk 0:00:51.1]} 24... Qf7 {[%clk 0:01:16.4]} 25. Qa4 {[%clk 0:00:44]}
25... g5 {[%clk 0:01:16.4]} 26. b5 {[%clk 0:00:39.4]} 26... g4 {[%clk 0:01:16]}
27. hxg4 {[%clk 0:00:37.4]} 27... Bxg4 {[%clk 0:01:15.1]} 28. Qd1 {[%clk
0:00:36]} 28... Nf5 {[%clk 0:01:09.7]} 29. b6 {[%clk 0:00:31.2]} 29... Nh4
{[%clk 0:01:04.6]} 30. Nxh4 {[%clk 0:00:25.6]} 30... Bxd1 {[%clk 0:01:03.4]} 31.
Rxd1 {[%clk 0:00:26.5]} 31... Qe7 {[%clk 0:00:49]} 32. Nf3 {[%clk 0:00:24.9]}
32... e4 {[%clk 0:00:48.9]} 33. dxe4 {[%clk 0:00:24.3]} 33... dxe4 {[%clk
0:00:49]} 34. Nd4 {[%clk 0:00:21]} 34... f3 {[%clk 0:00:41]} 35. g3 {[%clk
0:00:18.8]} 35... e3 {[%clk 0:00:39.5]} 36. Re1 {[%clk 0:00:10.9]} 36... e2
{[%clk 0:00:37.3]} 37. Ra2 {[%clk 0:00:04.3]} 37... Qxc5 {[%clk 0:00:34.2]} 38.
Nxf3 {[%clk 0:00:02.5]} 38... Rxf3 {[%clk 0:00:24.2]} 39. Raxe2 {[%clk 0:00:03]}
39... Rxg3+ {[%clk 0:00:16.7]} 40. Kf1 {[%clk 0:00:03.3]} 40... Rxc3 {[%clk
0:00:14.9]} 41. Re7 {[%clk 0:00:02.5]} 41... Qc4+ {[%clk 0:00:12.6]} 42. R1e2
{[%clk 0:00:02.1]} 42... Rc1+ {[%clk 0:00:12.3]} 0-1

[Event "*** Titled Tuesday Blitz"]
[Site "Chess.com"]
[Date "2021.03.02"]
[Round "8"]
[White "AlexTriapishko"]
[Black "sara_khm"]
[Result "1-0"]
[WhiteElo "2794"]
[BlackElo "2609"]
[TimeControl "180+1"]
[EndTime "11:30:14 PST"]
[Termination "AlexTriapishko won by resignation"]

1. Nf3 {[%clk 0:03:00.4]} 1... d5 {[%clk 0:02:57.2]} 2. g3 {[%clk 0:03:01.3]}
2... g6 {[%clk 0:02:51.7]} 3. Bg2 {[%clk 0:02:59.9]} 3... Bg7 {[%clk 0:02:51.4]}
4. d4 {[%clk 0:03:00.8]} 4... c6 {[%clk 0:02:50.2]} 5. O-O {[%clk 0:03:01.7]}
5... Nh6 {[%clk 0:02:49.9]} 6. c4 {[%clk 0:03:00]} 6... Nf5 {[%clk 0:02:46.5]}
7. Nc3 {[%clk 0:02:44.2]} 7... dxc4 {[%clk 0:02:42.1]} 8. e3 {[%clk 0:02:39.6]}
8... O-O {[%clk 0:02:41.6]} 9. Qe2 {[%clk 0:02:23.8]} 9... b5 {[%clk 0:02:41.1]}
10. a4 {[%clk 0:02:23.7]} 10... b4 {[%clk 0:02:36.9]} 11. Ne4 {[%clk 0:02:23.8]}
11... Ba6 {[%clk 0:02:27.8]} 12. Nc5 {[%clk 0:02:22.4]} 12... Qa5 {[%clk
0:02:24.1]} 13. Nxa6 {[%clk 0:01:49.6]} 13... Qxa6 {[%clk 0:02:20.1]} 14. Bd2
{[%clk 0:01:49.5]} 14... b3 {[%clk 0:02:18.7]} 15. Rfc1 {[%clk 0:01:43]} 15...
Nd6 {[%clk 0:02:16.8]} 16. Bb4 {[%clk 0:01:24.5]} 16... Nd7 {[%clk 0:02:06.9]}
17. Bxd6 {[%clk 0:01:23.6]} 17... exd6 {[%clk 0:02:06.7]} 18. Qxc4 {[%clk
0:01:24.2]} 18... Qxc4 {[%clk 0:02:05.6]} 19. Rxc4 {[%clk 0:01:25.1]} 19... c5
{[%clk 0:01:58.1]} 20. Nd2 {[%clk 0:01:23.1]} 20... Rab8 {[%clk 0:01:57.8]} 21.
a5 {[%clk 0:01:18.2]} 21... Rfc8 {[%clk 0:01:51.5]} 22. Rac1 {[%clk 0:00:50.1]}
22... Rb5 {[%clk 0:01:41.5]} 23. Ne4 {[%clk 0:00:49.9]} 23... d5 {[%clk
0:01:32.9]} 24. Nd6 {[%clk 0:00:48.5]} 24... dxc4 {[%clk 0:01:28.7]} 25. Nxb5
{[%clk 0:00:42.7]} 25... cxd4 {[%clk 0:01:26.1]} 26. exd4 {[%clk 0:00:42.9]}
26... c3 {[%clk 0:00:59.3]} 27. Rxc3 {[%clk 0:00:19.2]} 27... Rxc3 {[%clk
0:00:25.2]} 28. bxc3 {[%clk 0:00:20.1]} 28... b2 {[%clk 0:00:19.7]} 29. Na3
{[%clk 0:00:19.1]} 29... Bf8 {[%clk 0:00:17.5]} 30. Nb1 {[%clk 0:00:18.7]} 30...
Nb8 {[%clk 0:00:17.7]} 31. Be4 {[%clk 0:00:13.4]} 31... Bd6 {[%clk 0:00:18]} 32.
Kf1 {[%clk 0:00:13.7]} 32... Bc7 {[%clk 0:00:18.1]} 33. Ke2 {[%clk 0:00:11]}
33... Bxa5 {[%clk 0:00:18.1]} 34. Kd3 {[%clk 0:00:11.4]} 34... Bc7 {[%clk
0:00:17.1]} 35. Kc2 {[%clk 0:00:11.3]} 35... f5 {[%clk 0:00:18]} 36. Bd5+ {[%clk
0:00:11]} 36... Kf8 {[%clk 0:00:18.9]} 37. Kxb2 {[%clk 0:00:11.5]} 37... f4
{[%clk 0:00:19.8]} 38. g4 {[%clk 0:00:07.5]} 38... f3 {[%clk 0:00:19.2]} 39. h3
{[%clk 0:00:07.3]} 39... h5 {[%clk 0:00:16.4]} 40. gxh5 {[%clk 0:00:06.2]} 40...
gxh5 {[%clk 0:00:15.8]} 41. Bxf3 {[%clk 0:00:07.1]} 41... h4 {[%clk 0:00:16.7]}
42. Bg4 {[%clk 0:00:06.1]} 42... Nd7 {[%clk 0:00:17.6]} 43. Bxd7 {[%clk
0:00:04.6]} 1-0

[Event "*** Titled Tuesday Blitz"]
[Site "Chess.com"]
[Date "2021.03.02"]
[Round "8"]
[White "Rytenko_V"]
[Black "enriquebutti"]
[Result "0-1"]
[WhiteElo "2363"]
[BlackElo "2197"]
[TimeControl "180+1"]
[EndTime "11:30:14 PST"]
[Termination "enriquebutti won on time"]

1. d4 {[%clk 0:03:00.9]} 1... d5 {[%clk 0:02:59.4]} 2. Nf3 {[%clk 0:02:59.7]}
2... Nf6 {[%clk 0:02:57.7]} 3. Bg5 {[%clk 0:02:59.5]} 3... Nbd7 {[%clk
0:02:53.4]} 4. e3 {[%clk 0:02:59.4]} 4... g6 {[%clk 0:02:53]} 5. c4 {[%clk
0:02:59.3]} 5... e6 {[%clk 0:02:44.9]} 6. Nc3 {[%clk 0:02:59.5]} 6... Bg7 {[%clk
0:02:44.7]} 7. Be2 {[%clk 0:02:57.7]} 7... O-O {[%clk 0:02:44.2]} 8. O-O {[%clk
0:02:57.3]} 8... c6 {[%clk 0:02:41.9]} 9. a3 {[%clk 0:02:56.3]} 9... b6 {[%clk
0:02:41.7]} 10. Rc1 {[%clk 0:02:55.2]} 10... Bb7 {[%clk 0:02:40.4]} 11. Ne5
{[%clk 0:02:53.7]} 11... Qe8 {[%clk 0:02:30.9]} 12. cxd5 {[%clk 0:02:49.8]}
12... exd5 {[%clk 0:02:28.9]} 13. f4 {[%clk 0:02:41.9]} 13... Nxe5 {[%clk
0:02:27.4]} 14. fxe5 {[%clk 0:02:27.7]} 14... Nd7 {[%clk 0:02:26.7]} 15. Bg4
{[%clk 0:02:21.1]} 15... f5 {[%clk 0:02:25.9]} 16. exf6 {[%clk 0:01:50.8]} 16...
Nxf6 {[%clk 0:02:25.2]} 17. Bf3 {[%clk 0:01:23.6]} 17... h6 {[%clk 0:02:12.5]}
18. Bf4 {[%clk 0:01:23.6]} 18... g5 {[%clk 0:02:10.2]} 19. Be5 {[%clk
0:01:23.6]} 19... Nd7 {[%clk 0:02:05.8]} 20. Bxg7 {[%clk 0:01:12.7]} 20... Qxe3+
{[%clk 0:02:05.1]} 21. Kh1 {[%clk 0:01:13]} 21... Kxg7 {[%clk 0:02:02.7]} 22.
Re1 {[%clk 0:01:12.2]} 22... Qf4 {[%clk 0:02:00.9]} 23. Qe2 {[%clk 0:01:05.6]}
23... Nf6 {[%clk 0:01:51.1]} 24. h3 {[%clk 0:00:58.4]} 24... Rae8 {[%clk
0:01:42.9]} 25. Qd3 {[%clk 0:00:57]} 25... g4 {[%clk 0:01:29.4]} 26. hxg4 {[%clk
0:00:56.5]} 26... Nxg4 {[%clk 0:01:29]} 27. Bxg4 {[%clk 0:00:55.3]} 27... Qxg4
{[%clk 0:01:28.6]} 28. Rxe8 {[%clk 0:00:49.8]} 28... Rxe8 {[%clk 0:01:28.1]} 29.
Rf1 {[%clk 0:00:50.2]} 29... Qh4+ {[%clk 0:01:21.6]} 30. Kg1 {[%clk 0:00:50.1]}
30... Re1 {[%clk 0:01:20.6]} 31. b4 {[%clk 0:00:31.4]} 31... Rxf1+ {[%clk
0:01:17.7]} 32. Kxf1 {[%clk 0:00:32.3]} 32... Qf4+ {[%clk 0:01:16.8]} 33. Kg1
{[%clk 0:00:29.1]} 33... b5 {[%clk 0:01:14.4]} 34. Ne2 {[%clk 0:00:27.4]} 34...
Qg5 {[%clk 0:01:06.7]} 35. Qf3 {[%clk 0:00:25.3]} 35... Bc8 {[%clk 0:01:02.5]}
36. Nf4 {[%clk 0:00:16.7]} 36... Bg4 {[%clk 0:00:56.1]} 37. Qe3 {[%clk
0:00:16.4]} 37... Qf6 {[%clk 0:00:54.5]} 38. g3 {[%clk 0:00:15.8]} 38... h5
{[%clk 0:00:53]} 39. Qe8 {[%clk 0:00:13.7]} 39... Qxd4+ {[%clk 0:00:48.7]} 40.
Kf1 {[%clk 0:00:13.4]} 40... Qd1+ {[%clk 0:00:46.7]} 41. Kg2 {[%clk 0:00:12.2]}
41... Qf3+ {[%clk 0:00:46]} 42. Kh2 {[%clk 0:00:11.6]} 42... Qf2+ {[%clk
0:00:44.1]} 43. Ng2 {[%clk 0:00:11.8]} 43... Qf6 {[%clk 0:00:36.9]} 44. Nf4
{[%clk 0:00:07.6]} 44... Bf3 {[%clk 0:00:35.9]} 45. Qd7+ {[%clk 0:00:06.2]}
45... Kh6 {[%clk 0:00:34.9]} 46. Qe8 {[%clk 0:00:02.4]} 46... d4 {[%clk
0:00:33.2]} 0-1

[Event "*** Titled Tuesday Blitz"]
[Site "Chess.com"]
[Date "2021.03.02"]
[Round "8"]
[White "Ginger_GM"]
[Black "ChessWarrior7197"]
[Result "0-1"]
[WhiteElo "2627"]
[BlackElo "2901"]
[TimeControl "180+1"]
[EndTime "11:30:15 PST"]
[Termination "ChessWarrior7197 won by resignation"]

1. f4 {[%clk 0:03:00.9]} 1... d5 {[%clk 0:02:59.5]} 2. e3 {[%clk 0:02:56.4]}
2... Nf6 {[%clk 0:03:00.4]} 3. Nf3 {[%clk 0:02:56]} 3... Bg4 {[%clk 0:03:00.2]}
4. Be2 {[%clk 0:02:55.7]} 4... Bxf3 {[%clk 0:02:59.6]} 5. Bxf3 {[%clk
0:02:55.7]} 5... c6 {[%clk 0:03:00.5]} 6. O-O {[%clk 0:02:55.5]} 6... g6 {[%clk
0:03:01.1]} 7. d3 {[%clk 0:02:54.4]} 7... Bg7 {[%clk 0:03:02]} 8. e4 {[%clk
0:02:52.5]} 8... O-O {[%clk 0:03:02.9]} 9. Nc3 {[%clk 0:02:50.5]} 9... e6 {[%clk
0:02:59.9]} 10. Kh1 {[%clk 0:02:49.1]} 10... Nfd7 {[%clk 0:02:56.7]} 11. Qe1
{[%clk 0:02:40.8]} 11... Na6 {[%clk 0:02:56.5]} 12. h4 {[%clk 0:02:27.9]} 12...
Nb4 {[%clk 0:02:53]} 13. Bd1 {[%clk 0:02:17.4]} 13... h5 {[%clk 0:02:46.5]} 14.
a3 {[%clk 0:02:16.6]} 14... Na6 {[%clk 0:02:44.7]} 15. f5 {[%clk 0:02:14]} 15...
exf5 {[%clk 0:02:44.4]} 16. exf5 {[%clk 0:02:13.9]} 16... Kh7 {[%clk 0:02:25.4]}
17. Qg3 {[%clk 0:02:10.2]} 17... Bf6 {[%clk 0:02:24.7]} 18. Bg5 {[%clk
0:02:05.7]} 18... Qc7 {[%clk 0:02:13.8]} 19. Bf4 {[%clk 0:01:59.3]} 19... Qb6
{[%clk 0:02:13.5]} 20. Rb1 {[%clk 0:01:17.2]} 20... Rae8 {[%clk 0:01:56.1]} 21.
Bf3 {[%clk 0:01:06.2]} 21... Qd8 {[%clk 0:01:52.9]} 22. Bg5 {[%clk 0:01:05.5]}
22... Qc7 {[%clk 0:01:50.9]} 23. Bf4 {[%clk 0:01:05.2]} 23... Be5 {[%clk
0:01:51.4]} 24. Ne2 {[%clk 0:01:04.3]} 24... Rg8 {[%clk 0:01:31]} 25. d4 {[%clk
0:01:03.8]} 25... Bxf4 {[%clk 0:01:20]} 26. Nxf4 {[%clk 0:01:03.8]} 26... gxf5
{[%clk 0:01:18.8]} 27. Qh2 {[%clk 0:00:56.7]} 27... Nf6 {[%clk 0:01:15.7]} 28.
Nxh5 {[%clk 0:00:51.1]} 28... Qxh2+ {[%clk 0:01:14.3]} 29. Kxh2 {[%clk
0:00:50.8]} 29... Kg6 {[%clk 0:01:15.1]} 30. Nf4+ {[%clk 0:00:47.3]} 30... Kh6
{[%clk 0:01:15.7]} 31. Nd3 {[%clk 0:00:45.3]} 31... Nc7 {[%clk 0:01:13]} 32. Ne5
{[%clk 0:00:45]} 32... Rg7 {[%clk 0:01:13.6]} 33. Be2 {[%clk 0:00:42.6]} 33...
Reg8 {[%clk 0:01:06.3]} 34. Bf3 {[%clk 0:00:32.1]} 34... Ne6 {[%clk 0:01:05.8]}
35. c3 {[%clk 0:00:31.7]} 35... Nf4 {[%clk 0:00:59.4]} 36. Rf2 {[%clk
0:00:28.1]} 36... Ng6 {[%clk 0:00:57.2]} 37. Nxg6 {[%clk 0:00:23.2]} 37... fxg6
{[%clk 0:00:58.1]} 38. Re1 {[%clk 0:00:22.7]} 38... g5 {[%clk 0:00:53.3]} 39.
hxg5+ {[%clk 0:00:22]} 39... Kxg5 {[%clk 0:00:54.2]} 40. Re5 {[%clk 0:00:22]}
40... Rh7+ {[%clk 0:00:54.2]} 41. Kg1 {[%clk 0:00:21.6]} 41... Rgh8 {[%clk
0:00:55.1]} 42. Kf1 {[%clk 0:00:22.1]} 42... Rh1+ {[%clk 0:00:54.6]} 43. Ke2
{[%clk 0:00:22.5]} 43... Rb1 {[%clk 0:00:55.5]} 44. Kd3 {[%clk 0:00:22.8]} 44...
Re8 {[%clk 0:00:45.5]} 45. Rxe8 {[%clk 0:00:17.8]} 45... Nxe8 {[%clk 0:00:46.4]}
46. Kc2 {[%clk 0:00:18.3]} 46... Re1 {[%clk 0:00:42.6]} 47. Be2 {[%clk
0:00:16.8]} 47... Nd6 {[%clk 0:00:42]} 48. Bd3 {[%clk 0:00:16.7]} 48... f4
{[%clk 0:00:41.4]} 49. b3 {[%clk 0:00:15.1]} 49... a5 {[%clk 0:00:40.6]} 50. c4
{[%clk 0:00:14.9]} 50... Ne4 {[%clk 0:00:37.8]} 51. Bxe4 {[%clk 0:00:14.8]}
51... dxe4 {[%clk 0:00:37.9]} 52. d5 {[%clk 0:00:14]} 52... cxd5 {[%clk
0:00:38.8]} 53. cxd5 {[%clk 0:00:14.4]} 53... e3 {[%clk 0:00:39.7]} 54. Rf3
{[%clk 0:00:12.5]} 54... Re2+ {[%clk 0:00:40.1]} 55. Kc3 {[%clk 0:00:12]} 55...
Rxg2 {[%clk 0:00:38.8]} 0-1